Workbook

Sheet Sheet1
A1: 中国石油大学（北京）工商管理学院工商管理类专业本科生综合测评汇总表
A2: 名次 | B2: 学号 | C2: 姓名 | D2: 德育总成绩 | E2: 智育总成绩 | F2: 体育成绩 | G2: 必修课优良率 | H2: 综合测评成绩 | I2: 四级成绩 | J2: 体测成绩 | K2: 不及格门数 | L2: 有无纪律处分
A3: 1 | B3: 2016011881 | C3: 刘彦君 | D3: 115.08980000 | E3: =112.5328-4 -> 108.53280000 | F3: 87.9 | G3: 95.24% | H3: =D3*0.2+E3*0.7+F3*0.1 -> 107.7809 | I3: 600 | J3: 82.3 | K3: 0 | L3: 无
A4: 2 | B4: 2016011785 | C4: 张永尚 | D4: 110.91550000 | E4: 99.20720000 | F4: 87.30 | G4: 100.00% | H4: 100.3581 | I4: - | J4: 79.30 | K4: - | L4: 无
A5: 3 | B5: 2016011849 | C5: 王婕 | D5: 108.06666667 | E5: 99.10186667 | F5: 90.9 | G5: 95.24% | H5: 100.0746 | I5: 630 | J5: 74.2 | K5: - | L5: 无
A6: 4 | B6: 2016011854 | C6: 曹高航 | D6: 111.33333333 | E6: 96.22240000 | F6: 82.2 | G6: 95.24% | H6: 97.8423 | J6: 69 | K6: - | L6: 无
A7: 5 | B7: 2016011807 | C7: 钱莹莹 | D7: 107.53115702 | E7: 91.95013333 | F7: 109.90 | G7: 90.48% | H7: 96.8613 | I7: - | J7: 80.15 | K7: - | L7: 无
A8: 6 | B8: 2016011753 | C8: 张营玉 | D8: 106.0387097 | E8: 93.13760000 | F8: 81.90 | G8: 90.48% | H8: 94.5941 | I8: - | J8: 64.40 | K8: - | L8: 无
A9: 7 | B9: 2016011912 | C9: 孟婷婷 | D9: 106.69020000 | E9: 86.67314286 | F9: 105.80 | G9: 80.9500% | H9: 92.5892 | I9: - | J9: 86.80 | K9: 0 | L9: 无
A10: 8 | B10: 2016011817 | C10: 姚琼 | D10: 105.80991736 | E10: 90.06240000 | F10: 83.70 | G10: 90.48% | H10: 92.5757 | I10: - | J10: 76.9 | K10: - | L10: 无
A11: 9 | B11: 2016011778 | C11: 魏婉馨 | D11: 105.83640000 | E11: 89.38186667 | F11: 88.20 | G11: 95.24% | H11: 92.5546 | I11: - | J11: 76.70 | K11: - | L11: 无
A12: 10 | B12: 2016011782 | C12: 张安琪 | D12: 105.56360000 | E12: 89.47146667 | F12: 86.70 | G12: 95.24% | H12: 92.4127 | I12: 533 | J12: 78.60 | K12: - | L12: 无
A13: 11 | B13: 2016011786 | C13: 周思佳 | D13: 105.15384615 | E13: 88.77880000 | F13: 90.00 | G13: 95.24% | H13: 92.1759 | I13: - | J13: 79.90 | K13: - | L13: 无
A14: 12 | B14: 2016011841 | C14: 李婵娟 | D14: 107.46666667 | E14: 87.50340000 | F14: 94.2 | G14: 95.24% | H14: 92.1657 | J14: 81.5 | K14: - | L14: 无
A15: 13 | B15: 2016011897 | C15: 张烽 | D15: 119.50380000 | E15: 85.00640000 | F15: 84 | G15: 76.19% | H15: 91.8052 | I15: - | J15: 73.1 | K15: 0 | L15: 无
A16: 14 | B16: 2016011824 | C16: 金锦文 | D16: 106.37231405 | E16: 88.23340000 | F16: 87.60 | G16: 95.24% | H16: 91.7978 | I16: - | J16: 76.9 | K16: - | L16: 无
A17: 15 | B17: 2016011921 | C17: 黄诗渊 | D17: 99.57240000 | E17: 88.99080000 | F17: 95.40 | G17: 95.2400% | H17: 91.7480 | I17: - | J17: 84.60 | K17: 0 | L17: 无
A18: 16 | B18: 2016011924 | C18: 苏江硕 | D18: 106.43650000 | E18: 86.47460000 | F18: 97.20 | G18: 85.7100% | H18: 91.5395 | I18: - | J18: 81.80 | K18: 0 | L18: 无
A19: 17 | B19: 2016011872 | C19: 范欣悦 | D19: 103.31460000 | E19: 88.85740000 | F19: 85.5 | G19: 90.48% | H19: 91.4131 | I19: - | J19: 75.7 | K19: 0 | L19: 无
A20: 18 | B20: 2016011910 | C20: 栾焕焕 | D20: 107.25713333 | E20: 87.31268571 | F20: 88.20 | G20: 76.1900% | H20: 91.3903 | I20: - | J20: 81.10 | K20: 0 | L20: 无
A21: 19 | B21: 2016011874 | C21: 韩怡婷 | D21: 124.70490000 | E21: =86.5936-4 -> 82.59360000 | F21: 83.7 | G21: 61.90% | H21: =93.9265-2.8 -> 91.1265 | I21: - | J21: 73.8 | K21: 0 | L21: 无
A22: 20 | B22: 2016011776 | C22: 王晨铭 | D22: 105.28180000 | E22: 87.30661818 | F22: 89.40 | G22: 95.24% | H22: 91.1110 | I22: - | J22: 74.40 | K22: - | L22: 无
A23: 21 | B23: 2016011868 | C23: 陈雨萱 | D23: 104.27550000 | E23: 87.34066667 | F23: 88.8 | G23: 90.48% | H23: 90.8736 | I23: 589 | J23: 82.5 | K23: 0 | L23: 无
A24: 22 | B24: 2016011869 | C24: 崔雪悦 | D24: 104.20970000 | E24: 88.00320000 | F24: 82.2 | G24: 90.48% | H24: 90.6642 | I24: 589 | J24: - | K24: 0 | L24: 无
A25: 23 | B25: 2016011793 | C25: 吕桁宇 | D25: 106.15650000 | E25: 86.62925714 | F25: 86.70 | G25: 90.48% | H25: 90.5418 | I25: - | J25: 77.20 | K25: - | L25: 无
A26: 24 | B26: 2016011853 | C26: 赵冠月 | D26: 107.53333333 | E26: 86.12622222 | F26: 84.3 | G26: 90.48% | H26: 90.2250 | J26: 71.4 | K26: - | L26: 无
A27: 25 | B27: 2016011906 | C27: 李晶 | D27: 102.84730000 | E27: 87.68400000 | F27: 82.50 | G27: 76.1900% | H27: 90.1983 | I27: 583 | J27: 69.40 | K27: 0 | L27: 无
A28: 26 | B28: 2016011780 | C28: 杨济宁 | D28: 105.83640000 | E28: 85.50240000 | F28: 88.80 | G28: 76.19% | H28: 89.8990 | I28: - | J28: 76.50 | K28: - | L28: 无
A29: 27 | B29: 2016011905 | C29: 黎珂伽 | D29: 105.21930000 | E29: 85.96679245 | F29: 86.10 | G29: 90.9100% | H29: 89.8306 | I29: - | J29: 67.30 | K29: 0 | L29: 无
A30: 28 | B30: 2016011764 | C30: 许泽林 | D30: 104.8387097 | E30: 86.09750000 | F30: 85.10 | G30: 76.19% | H30: 89.7460 | I30: - | J30: 72.40 | K30: - | L30: 无
A31: 29 | B31: 2016011895 | C31: 杨新强 | D31: 98.36260000 | E31: 86.89600000 | F31: =90.1+2 -> 92.1 | G31: 95.24% | H31: =89.50972+0.2 -> 89.7097 | I31: - | J31: 71.8 | K31: 0 | L31: 无
A32: 30 | B32: 2015011861 | C32: 李志 | D32: 105.16666667 | E32: 85.60640000 | F32: 86.7 | G32: 76.19% | H32: 89.6278 | J32: 64.5 | K32: - | L32: 无
A33: 31 | B33: 2016011733 | C33: 柴怡彤 | D33: 106.0064516 | E33: 84.88586667 | F33: 88.50 | G33: 80.95% | H33: 89.4714 | I33: - | J33: 77.40 | K33: - | L33: 无
A34: 32 | B34: 2016011856 | C34: 冯林虎 | D34: 111.90000000 | E34: 84.17617778 | F34: 81.6 | G34: 85.71% | H34: 89.4633 | J34: 70 | K34: - | L34: 无
A35: 33 | B35: 2016011816 | C35: 杨若璇 | D35: 106.72479339 | E35: 85.66299339 | F35: 81.30 | G35: 80.95% | H35: 89.4391 | I35: - | J35: 74.85 | K35: - | L35: 无
A36: 34 | B36: 2016011743 | C36: 潘文 | D36: 104.8387097 | E36: 85.19520000 | F36: 88.20 | G36: 95.24% | H36: 89.4244 | I36: - | J36: 74.60 | K36: - | L36: 无
A37: 35 | B37: 2016011836 | C37: 丁乐南 | D37: 107.16666667 | E37: 84.57440000 | F37: 87.8 | G37: 85.71% | H37: 89.4154 | J37: 76.3 | K37: - | L37: 无
A38: 36 | B38: 2016011802 | C38: 董舟径 | D38: 105.94983471 | E38: 84.61348425 | F38: 89.70 | G38: 71.43% | H38: 89.3894 | I38: - | J38: 77.25 | K38: - | L38: 无
A39: 37 | B39: 2016011909 | C39: 梁安妮 | D39: 106.10870000 | E39: 84.00800000 | F39: 93.30 | G39: 90.4800% | H39: 89.3573 | I39: - | J39: 79.20 | K39: 0 | L39: 无
A40: 38 | B40: 2016011844 | C40: 吕天祎 | D40: 107.33333333 | E40: 84.11306667 | F40: 89.6 | G40: 85.71% | H40: 89.3058 | I40: 613 | J40: 82 | K40: - | L40: 无
A41: 39 | B41: 2016011761 | C41: 王博文 | D41: 104.7741936 | E41: 85.05653333 | F41: 87.60 | G41: 76.19% | H41: 89.2544 | I41: - | J41: 72.20 | K41: - | L41: 无
A42: 40 | B42: 2016011752 | C42: 杨庆 | D42: 106.0709677 | E42: 84.64800000 | F42: 86.70 | G42: 76.19% | H42: 89.1378 | I42: - | J42: 80.10 | K42: - | L42: 无
A43: 41 | B43: 2016011826 | C43: 李鑫 | D43: 106.77231405 | E43: 82.51381044 | F43: 99.50 | G43: 60.00% | H43: 89.0641 | I43: - | J43: 83.75 | K43: - | L43: 无
A44: 42 | B44: 2016011928 | C44: 张文园 | D44: 105.51730000 | E44: 85.16226667 | F44: 83.10 | G44: 71.4300% | H44: 89.0270 | I44: - | J44: 74.00 | K44: 0 | L44: 无
A45: 43 | B45: 2016011803 | C45: 郭巍 | D45: 107.05479339 | E45: 82.15831122 | F45: 100.97 | G45: 71.43% | H45: 89.0184 | I45: - | J45: 86 | K45: - | L45: 无
A46: 44 | B46: 2016011805 | C46: 寇雨晴 | D46: 113.90809917 | E46: 82.84480732 | F46: 82.20 | G46: 52.38% | H46: 88.9900 | I46: - | J46: 61.9 | K46: 1 | L46: 无
A47: 45 | B47: 2016011759 | C47: 李嘉豪 | D47: 106.0064516 | E47: 84.10491429 | F47: 88.20 | G47: 80.95% | H47: 88.8947 | I47: - | J47: 69.70 | K47: - | L47: 无
A48: 46 | B48: 2016011927 | C48: 张威 | D48: 105.08740000 | E48: 85.35733333 | F48: 80.70 | G48: 76.1900% | H48: 88.8376 | I48: - | J48: 63.70 | K48: 0 | L48: 无
A49: 47 | B49: 2016011792 | C49: 刘新村 | D49: 106.78450000 | E49: 84.17902222 | F49: 84.60 | G49: 76.19% | H49: 88.7422 | I49: - | J49: 72.50 | K49: - | L49: 无
A50: 48 | B50: 2016011835 | C50: 陈彦迪 | D50: 107.40000000 | E50: 84.12200000 | F50: 83.4 | G50: 71.43% | H50: 88.7054 | J50: 78.7 | K50: - | L50: 无
A51: 49 | B51: 2016011763 | C51: 王林林 | D51: 98.87096774 | E51: 85.65462857 | F51: 89.70 | G51: 85.71% | H51: 88.7024 | I51: - | J51: 74.20 | K51: - | L51: 无
A52: 50 | B52: 2016011769 | C52: 李翩鸿 | D52: 108.92730000 | E52: 82.62240000 | F52: 90.80 | G52: 76.19% | H52: 88.7011 | I52: - | J52: 75.70 | K52: 1 | L52: 无
A53: 51 | B53: 2016011734 | C53: 陈玟静 | D53: 106.1032258 | E53: 81.49140000 | F53: 104.30 | G53: 71.43% | H53: 88.6946 | I53: - | J53: 85.70 | K53: - | L53: 无
A54: 52 | B54: 2016011883 | C54: 王佳韵 | D54: 104.68450000 | E54: 83.59546667 | F54: 92.1 | G54: 85.71% | H54: 88.6637 | I54: - | J54: 85.8 | K54: 0 | L54: 无
A55: 53 | B55: 2016011831 | C55: 张铭洋 | D55: 110.70809917 | E55: 82.42262857 | F55: 88.00 | G55: 85.71% | H55: 88.6375 | I55: - | J55: 72.95 | K55: - | L55: 无
A56: 54 | B56: 2016011767 | C56: 贾艳飞 | D56: 105.74550000 | E56: 84.31440000 | F56: 84.60 | G56: 90.48% | H56: 88.6292 | I56: - | J56: 76.20 | K56: - | L56: 无
A57: 55 | B57: 2016011847 | C57: 孙佳欣 | D57: 108.26666667 | E57: 83.47574468 | F57: 83.4 | G57: 75.00% | H57: 88.4264 | J57: 75 | K57: - | L57: 无
A58: 56 | B58: 2016011850 | C58: 谢雯丽 | D58: 102.06666667 | E58: 85.26080000 | F58: 83.1 | G58: 80.95% | H58: 88.4059 | J58: 72.2 | K58: - | L58: 无
A59: 57 | B59: 2016011818 | C59: 月圆 | D59: 107.00991736 | E59: 83.20188255 | F59: 87.60 | G59: 71.42% | H59: 88.4033 | I59: - | J59: 78.9 | K59: - | L59: 无
A60: 58 | B60: 2016011877 | C60: 李晨乐 | D60: 105.26420000 | E60: 83.45280000 | F60: 88.2 | G60: 71.43% | H60: 88.2898 | I60: - | J60: 80.2 | K60: 0 | L60: 无
A61: 59 | B61: 2016011871 | C61: 杜婷 | D61: 106.44710000 | E61: 83.92822857 | F61: 82.2 | G61: 76.19% | H61: 88.2592 | I61: - | J61: 70.8 | K61: 0 | L61: 无
A62: 60 | B62: 2016011781 | C62: 尹传朗 | D62: 105.70000000 | E62: 83.23600000 | F62: 88.50 | G62: 80.95% | H62: 88.2552 | I62: - | J62: 81.90 | K62: 1 | L62: 无
A63: 61 | B63: 2016011825 | C63: 李嘉航 | D63: 111.10024793 | E63: 81.52892282 | F63: 89.20 | G63: 57.14% | H63: 88.2100 | I63: - | J63: 81.5 | K63: 1 | L63: 无
A64: 62 | B64: 2016011896 | C64: 臧永成 | D64: 105.65690000 | E64: 83.13805714 | F64: =86.2+2 -> 88.2 | G64: 90.48% | H64: =87.94802+0.2 -> 88.1480 | I64: - | J64: 72 | K64: 0 | L64: 无
A65: 63 | B65: 2016011880 | C65: 刘露丹 | D65: 105.60050000 | E65: 83.67578182 | F65: 84.3 | G65: 80.95% | H65: 88.1231 | I65: - | J65: 64.8 | K65: 0 | L65: 无
A66: 64 | B66: 2016011845 | C66: 任乾真 | D66: 106.60000000 | E66: 83.16720000 | F66: 85.2 | G66: 80.95% | H66: 88.0570 | J66: 80.4 | K66: - | L66: 无
A67: 65 | B67: 2016011919 | C67: 赵怡波 | D67: 105.07630000 | E67: 82.67011765 | F67: 90.60 | G67: 76.1900% | H67: 87.9443 | I67: - | J67: 76.80 | K67: 0 | L67: 无
A68: 66 | B68: 2016011813 | C68: 吴雨琪 | D68: 106.91487603 | E68: 78.87213743 | F68: 112.10 | G68: 57.14% | H68: 87.8035 | I68: - | J68: 83.75 | K68: 1 | L68: 无
A69: 67 | B69: 2016011866 | C69: 赵惠根 | D69: 107.23333333 | E69: 82.70102857 | F69: 84 | G69: 76.19% | H69: 87.7374 | J69: 67.8 | K69: - | L69: 无
A70: 68 | B70: 2016011771 | C70: 刘绪康 | D70: 105.32730000 | E70: 82.90293333 | F70: 85.50 | G70: 66.67% | H70: 87.6475 | I70: - | J70: 80.00 | K70: - | L70: 无
A71: 69 | B71: 2016011884 | C71: 王莹 | D71: 98.50520000 | E71: 85.05556364 | F71: 84 | G71: 85.71% | H71: 87.6399 | I71: - | J71: 76.4 | K71: 0 | L71: 无
A72: 70 | B72: 2016011911 | C72: 梅家宇 | D72: 105.39930000 | E72: 82.87120000 | F72: 85.20 | G72: 61.9000% | H72: 87.6097 | I72: - | J72: 79.20 | K72: 0 | L72: 无
A73: 71 | B73: 2016011894 | C73: 许晓虎 | D73: 104.33370000 | E73: 81.95573333 | F73: =91.3+2 -> 93.3 | G73: 57.14% | H73: =87.3657533333334+0.2 -> 87.5658 | I73: - | J73: 73 | K73: 0 | L73: 无
A74: 72 | B74: 2016011886 | C74: 杨丽婷 | D74: 110.50540000 | E74: 79.86560000 | F74: 96.6 | G74: 71.43% | H74: 87.4982 | I74: - | J74: 73.1 | K74: 1 | L74: 无
A75: 73 | B75: 2016011916 | C75: 吴雪婷 | D75: 105.15660000 | E75: 80.52000000 | F75: 100.80 | G75: 76.1900% | H75: 87.4753 | I75: - | J75: 81.60 | K75: 1 | L75: 无
A76: 74 | B76: 2016011750 | C76: 王雅珊 | D76: 105.97419355 | E76: 80.86320000 | F76: 96.10 | G76: 66.67% | H76: 87.4091 | I76: - | J76: 84.60 | K76: - | L76: 无
A77: 75 | B77: 2016011812 | C77: 王曼虹 | D77: 108.48247934 | E77: 81.69245714 | F77: 84.90 | G77: 57.14% | H77: 87.3712 | I77: - | J77: 77.2 | K77: - | L77: 无
A78: 76 | B78: 2016011851 | C78: 杨荔 | D78: 106.66666667 | E78: 82.57244444 | F78: 82.2 | G78: 71.43% | H78: 87.3540 | J78: 68.7 | K78: - | L78: 无
A79: 77 | B79: 2016011819 | C79: 张铭书 | D79: 106.02975207 | E79: 82.01582418 | F79: 87.00 | G79: 72.73% | H79: 87.3170 | I79: - | J79: 83.9 | K79: - | L79: 无
A80: 78 | B80: 2016011749 | C80: 王希贤 | D80: 105.8387097 | E80: 82.57795556 | F80: 82.20 | G80: 80.95% | H80: 87.1923 | I80: 553 | J80: 72.50 | K80: - | L80: 无
A81: 79 | B81: 2016011779 | C81: 闫丽辰 | D81: 105.52170000 | E81: 80.49691429 | F81: 96.80 | G81: 57.14% | H81: 87.1322 | I81: - | J81: 84.80 | K81: 1 | L81: 无
A82: 80 | B82: 2016011917 | C82: 袁琳 | D82: 106.91743333 | E82: 80.17680000 | F82: 95.40 | G82: 80.9500% | H82: 87.0472 | I82: - | J82: 80.80 | K82: 1 | L82: 无
A83: 81 | B83: 2016011801 | C83: 陈紫童 | D83: 106.77231405 | E83: 82.01226667 | F83: 82.50 | G83: 76.19% | H83: 87.0130 | I83: - | J83: 72.75 | K83: - | L83: 无
A84: 82 | B84: =[1]综合测评!B8 -> 2016011907 | C84: =[1]综合测评!C8 -> 李彤蕾 | D84: =[1]综合测评!D8 -> 109.85490000 | E84: =[1]综合测评!E8 -> 80.52017778 | F84: =[1]综合测评!F8 -> 86.40 | G84: =[1]综合测评!G8 -> 61.9000% | H84: =[1]综合测评!H8 -> 86.9751 | I84: =[1]综合测评!I8 -> 0 | J84: =[1]综合测评!J8 -> 74.20 | K84: =[1]综合测评!K8 -> 1 | L84: =[1]综合测评!L8 -> 无
A85: 83 | B85: 2016011899 | C85: 赵赫 | D85: 104.46660000 | E85: 80.98133333 | F85: =90.7+2 -> 92.7 | G85: 66.67% | H85: =86.6502533333333+0.2 -> 86.8503 | I85: - | J85: 74.2 | K85: 0 | L85: 无
A86: 84 | B86: 2016011772 | C86: 卢天昕 | D86: 98.31820000 | E86: 84.20320000 | F86: 81.30 | G86: 80.95% | H86: 86.7359 | I86: - | J86: 72.80 | K86: - | L86: 无
A87: 85 | B87: 2016011738 | C87: 李鑫洁 | D87: 106.0064516 | E87: 80.73805714 | F87: 88.20 | G87: 66.67% | H87: 86.5379 | I87: 556 | J87: 73.80 | K87: - | L87: 无
A88: 86 | B88: =[1]综合测评!B25 -> 2016011925 | C88: =[1]综合测评!C25 -> 孙康 | D88: =[1]综合测评!D25 -> 105.34850000 | E88: =[1]综合测评!E25 -> 82.13440000 | F88: =[1]综合测评!F25 -> 79.50 | G88: =[1]综合测评!G25 -> 71.4300% | H88: =[1]综合测评!H25 -> 86.5138 | I88: =[1]综合测评!I25 -> 0 | J88: =[1]综合测评!J25 -> 63.00 | K88: =[1]综合测评!K25 -> 0 | L88: =[1]综合测评!L25 -> 无
A89: 87 | B89: 2016011926 | C89: 袁恩飞 | D89: 104.61930000 | E89: 78.29622642 | F89: 107.20 | G89: 63.6300% | H89: 86.4512 | I89: - | J89: 90.50 | K89: 1 | L89: 无
A90: 88 | B90: 2016011833 | C90: 赵钰杰 | D90: 107.19115702 | E90: 79.15449162 | F90: 96.00 | G90: 61.90% | H90: 86.4464 | I90: - | J90: 80.25 | K90: 3 | L90: 无
A91: 89 | B91: 2016011852 | C91: 要之煊 | D91: 107.26666667 | E91: 78.99200000 | F91: 96.5 | G91: 61.90% | H91: 86.3977 | J91: 82.1 | K91: 1 | L91: 无
A92: 90 | B92: 2016011810 | C92: 孙飞叶 | D92: 105.85479339 | E92: 80.74336334 | F92: 86.40 | G92: 66.67% | H92: 86.3313 | I92: - | J92: 67.5 | K92: - | L92: 无
A93: 91 | B93: 2016011903 | C93: 贾新燕 | D93: 105.50870000 | E93: 80.62240000 | F93: 87.60 | G93: 68.1800% | H93: 86.2974 | I93: - | J93: 78.30 | K93: 0 | L93: 无
A94: 92 | B94: 2016011837 | C94: 弓倩 | D94: 107.00000000 | E94: 80.58968889 | F94: 84.3 | G94: 66.67% | H94: 86.2428 | J94: 73.4 | K94: - | L94: 无
A95: 93 | B95: 2016011920 | C95: 何宇波 | D95: 110.83783333 | E95: 78.98458182 | F95: 87.00 | G95: 71.4300% | H95: 86.1568 | I95: - | J95: 69.70 | K95: 0 | L95: 无
A96: 94 | B96: 2016011892 | C96: 韦翔曦 | D96: 113.91510000 | E96: =83.35565714-4 -> 79.35565714 | F96: 75 | G96: 52.38% | H96: =88.63198-2.8 -> 85.8320 | I96: 583 | J96: 50.9 | K96: 1 | L96: 无
A97: 95 | B97: 2016011861 | C97: 宁二磊 | D97: 107.16666667 | E97: 79.91794286 | F97: 84.3 | G97: 71.43% | H97: 85.8059 | J97: 83 | K97: 1 | L97: 无
A98: 96 | B98: 2016011783 | C98: 张晨晨 | D98: 100.18180000 | E98: 81.02674286 | F98: 90.00 | G98: 80.95% | H98: 85.7551 | I98: - | J98: 78.60 | K98: 1 | L98: 无
A99: 97 | B99: 2016011913 | C99: 彭素华 | D99: 105.70920000 | E99: 78.50331429 | F99: 96.00 | G99: 61.9000% | H99: 85.6942 | I99: - | J99: 80.30 | K99: 0 | L99: 无
A100: 98 | B100: 2016011878 | C100: 李晴 | D100: 98.16340000 | E100: 81.92960000 | F100: 87 | G100: 76.19% | H100: 85.6834 | I100: - | J100: 72.7 | K100: 0 | L100: 无
A101: 99 | B101: 2016011741 | C101: 孟椿雨 | D101: 102.7741936 | E101: 80.83573333 | F101: 84.60 | G101: 66.67% | H101: 85.5999 | I101: - | J101: 76.20 | K101: - | L101: 无
A102: 100 | B102: 2016011739 | C102: 刘清华 | D102: 105.6064516 | E102: 79.18826667 | F102: 88.50 | G102: 66.67% | H102: 85.4031 | I102: - | J102: 83.60 | K102: - | L102: 无
A103: 101 | B103: 2016011751 | C103: 吴倩 | D103: 106.1032258 | E103: 78.95634286 | F103: 87.90 | G103: 66.67% | H103: 85.2801 | I103: - | J103: 79.80 | K103: 1 | L103: 无
A104: 102 | B104: 2016011885 | C104: 王泽玙 | D104: 110.19640000 | E104: 77.33360000 | F104: 89.1 | G104: 52.38% | H104: 85.0828 | I104: - | J104: 79.8 | K104: 0 | L104: 无
A105: 103 | B105: 2016011757 | C105: 董轩 | D105: 110.7087097 | E105: 77.09874286 | F105: 89.60 | G105: 52.38% | H105: 85.0709 | I105: - | J105: 63.10 | K105: - | L105: 无
A106: 104 | B106: 2016011815 | C106: 杨欢欢 | D106: 106.62975207 | E106: 77.49076923 | F106: 94.80 | G106: 59.10% | H106: 85.0495 | I106: - | J106: 82.3 | K106: 1 | L106: 无
A107: 105 | B107: 2016011882 | C107: 谭丽 | D107: 105.67350000 | E107: 78.68320000 | F107: 87.3 | G107: 71.43% | H107: 84.9429 | I107: - | J107: 80.1 | K107: 0 | L107: 无
A108: 106 | B108: 2016011740 | C108: 刘晓娟 | D108: 105.40645161 | E108: 78.81380000 | F108: 86.40 | G108: 57.14% | H108: 84.8910 | I108: - | J108: 76.70 | K108: - | L108: 无
A109: 107 | B109: 2016011811 | C109: 汪烨 | D109: 107.00991736 | E109: 78.00497979 | F109: 87.30 | G109: 47.62% | H109: 84.7355 | I109: - | J109: 79.35 | K109: - | L109: 无
A110: 108 | B110: 2015011875 | C110: 郭明珠 | D110: 106.77024793 | E110: 78.79928889 | F110: 82.20 | G110: 76.19% | H110: 84.7336 | I110: - | J110: 78.45 | K110: - | L110: 无
A111: 109 | B111: 2016011829 | C111: 徐晓 | D111: 103.32479339 | E111: 80.41222437 | F111: 77.70 | G111: 57,14% | H111: 84.7235 | I111: - | J111: 65.6 | K111: - | L111: 无
A112: 110 | B112: 2016011931 | C112: 朱海杰 | D112: 99.65040000 | E112: 80.80720000 | F112: 82.20 | G112: 57.1400% | H112: 84.7151 | I112: - | J112: 72.40 | K112: 0 | L112: 无
A113: 111 | B113: 2016011746 | C113: 童雯慧 | D113: 104.7419355 | E113: 78.47108571 | F113: 86.70 | G113: 57.14% | H113: 84.5481 | I113: - | J113: 72.90 | K113: - | L113: 无
A114: 112 | B114: 2016011745 | C114: 沈甜甜 | D114: 98.74193548 | E114: 80.07062857 | F114: 87.30 | G114: 66.67% | H114: 84.5278 | I114: 509 | J114: 81.90 | K114: - | L114: 无
A115: 113 | B115: 2016011904 | C115: 金怡彤 | D115: 106.50843333 | E115: 77.62480000 | F115: 88.20 | G115: 61.9000% | H115: 84.4590 | I115: - | J115: 74.50 | K115: 0 | L115: 无
A116: 114 | B116: 2016011860 | C116: 黎培骥 | D116: 105.76666667 | E116: 78.73142857 | F116: 81.6 | G116: 47.62% | H116: 84.4253 | J116: 65.6 | K116: - | L116: 无
A117: 115 | B117: 2016011747 | C117: 汪雅馨 | D117: 105.9354839 | E117: 77.84800000 | F117: 86.10 | G117: 61.90% | H117: 84.2907 | I117: - | J117: 82.80 | K117: - | L117: 无
A118: 116 | B118: 2016011737 | C118: 李梦雨 | D118: 105.7741936 | E118: 78.51875556 | F118: 81.60 | G118: 52.38% | H118: 84.2780 | I118: - | J118: 75.00 | K118: 1 | L118: 无
A119: 117 | B119: 2016011828 | C119: 吴嘉雨 | D119: 103.65743802 | E119: 78.90390716 | F119: 81.90 | G119: 50.00% | H119: 84.1542 | I119: - | J119: 72.9 | K119: - | L119: 无
A120: 118 | B120: 2016011846 | C120: 苏聪佳 | D120: 107.20000000 | E120: 77.31520000 | F120: 85.5 | G120: 66.67% | H120: 84.1106 | I120: 504 | J120: 81.2 | K120: 1 | L120: 无
A121: 119 | B121: 2016011744 | C121: 齐高娃 | D121: 98.83870968 | E121: 80.40100000 | F121: 80.10 | G121: 71.43% | H121: 84.0584 | I121: - | J121: 65.30 | K121: - | L121: 无
A122: 120 | B122: 2016011755 | C122: 崔世伟 | D122: 105.40645161 | E122: 76.91733333 | F122: 90.90 | G122: 42.86% | H122: 84.0134 | I122: - | J122: 72.60 | K122: - | L122: 无
A123: 121 | B123: 2016011859 | C123: 邝仕浩 | D123: 106.86666667 | E123: 76.26818462 | F123: 91.8 | G123: 57.14% | H123: 83.9411 | J123: 77.8 | K123: 1 | L123: 无
A124: 122 | B124: 2016011794 | C124: 马文灿 | D124: 111.85220000 | E124: 75.77988571 | F124: 84.90 | G124: 38.10% | H124: 83.9064 | I124: - | J124: 67.30 | K124: 2 | L124: 无
A125: 123 | B125: 2016011887 | C125: 冯绍鹏 | D125: 110.62750000 | E125: 75.87405714 | F125: =84.4+2 -> 86.4 | G125: 61.90% | H125: =83.67734+0.2 -> 83.8773 | I125: - | J125: 62 | K125: 2 | L125: 无
A126: 124 | B126: 2016030067 | C126: 余晨瑞 | D126: 103.83510000 | E126: 78.20000000 | F126: 83.4 | G126: 33.33% | H126: 83.8470 | I126: - | J126: 64.5 | K126: 1 | L126: 无
A127: 125 | B127: 2016011756 | C127: 崔岩 | D127: 101.8709677 | E127: 79.11741538 | F127: 80.40 | G127: 66.67% | H127: 83.7964 | I127: - | J127: 71.80 | K127: - | L127: 无
A128: 126 | B128: 2016011827 | C128: 骆浩 | D128: 106.81983471 | E128: 77.13046619 | F128: 84.30 | G128: 47.61% | H128: 83.7853 | I128: - | J128: 68.95 | K128: - | L128: 无
A129: 127 | B129: 2016011908 | C129: 李文晶 | D129: 106.03650000 | E129: 75.82786667 | F129: 94.60 | G129: 57.1400% | H129: 83.7468 | I129: - | J129: 83.40 | K129: 1 | L129: 无
A130: 128 | B130: 2016011843 | C130: 刘益欣 | D130: 107.33333333 | E130: 73.98480000 | F130: 104.1 | G130: 57.14% | H130: 83.6660 | J130: 78.8 | K130: 2 | L130: 无
A131: 129 | B131: 2016011735 | C131: 董友贞 | D131: 106.0387097 | E131: 76.57600000 | F131: 87.90 | G131: 47.62% | H131: 83.6009 | I131: - | J131: 82.20 | K131: 1 | L131: 无
A132: 130 | B132: 2016011797 | C132: 于钟杰 | D132: 98.47830000 | E132: 78.90240000 | F132: 84.60 | G132: 57.14% | H132: 83.3873 | I132: - | J132: 77.90 | K132: - | L132: 无
A133: 131 | B133: 2016011760 | C133: 李嘉荣 | D133: 103.8387097 | E133: 77.70215385 | F133: 81.90 | G133: 71.43% | H133: 83.3492 | I133: - | J133: 72.40 | K133: 2 | L133: 无
A134: 132 | B134: 2016011842 | C134: 刘泓鑫 | D134: 112.00000000 | E134: 74.66906667 | F134: 86.7 | G134: 61.90% | H134: 83.3383 | J134: 77.6 | K134: 2 | L134: 无
A135: 133 | B135: =[1]综合测评!B29 -> 2016011929 | C135: =[1]综合测评!C29 -> 张治宏 | D135: =[1]综合测评!D29 -> 111.37313333 | E135: =[1]综合测评!E29 -> 75.42240000 | F135: =[1]综合测评!F29 -> 81.60 | G135: =[1]综合测评!G29 -> 42.8500% | H135: =[1]综合测评!H29 -> 83.2303 | I135: =[1]综合测评!I29 -> 0 | J135: =[1]综合测评!J29 -> 71.20 | K135: =[1]综合测评!K29 -> 0 | L135: =[1]综合测评!L29 -> 无
A136: 134 | B136: 2016011832 | C136: 张小海 | D136: 105.92479339 | E136: 77.51043478 | F136: 77.40 | G136: 47.62% | H136: 83.1823 | I136: - | J136: 61.35 | K136: 2 | L136: 无
A137: 135 | B137: 2016011873 | C137: 高思雨 | D137: 104.29590000 | E137: 76.47520000 | F137: 87 | G137: 52.38% | H137: 83.0918 | I137: - | J137: 73.9 | K137: 2 | L137: 无
A138: 136 | B138: 2016011876 | C138: 金倩倩 | D138: 110.30430000 | E138: 74.81200000 | F138: 86.1 | G138: 47.62% | H138: 83.0393 | I138: - | J138: 77.6 | K138: 2 | L138: 无
A139: 137 | B139: 2016011804 | C139: 姜涵悦 | D139: 107.85479339 | E139: 75.80364742 | F139: 83.40 | G139: 55.00% | H139: 82.9735 | I139: - | J139: 72.65 | K139: 2 | L139: 无
A140: 138 | B140: 2016011784 | C140: 张宛秋 | D140: 105.50000000 | E140: 76.17333333 | F140: 84.90 | G140: 52.38% | H140: 82.9113 | I140: - | J140: 73.90 | K140: 2 | L140: 无
A141: 139 | B141: 2016011808 | C141: 申荣洁 | D141: 108.10231405 | E141: 75.46000000 | F141: 84.60 | G141: 55.00% | H141: =0.2*D141+0.7*E141+0.1*F141 -> 82.9025 | I141: - | J141: 70.35 | K141: 1 | L141: 无
A142: 140 | B142: 2016011770 | C142: 刘桂杰 | D142: 99.27270000 | E142: 76.20333333 | F142: 96.50 | G142: 61.90% | H142: 82.8469 | I142: - | J142: 79.40 | K142: - | L142: 无
A143: 141 | B143: 2016011848 | C143: 孙艺源 | D143: 99.86666667 | E143: 78.17051429 | F143: 80.1 | G143: 52.38% | H143: 82.7027 | J143: 75.6 | K143: 1 | L143: 无
A144: 142 | B144: 2016011766 | C144: 周凡 | D144: 104.8709677 | E144: 75.61234286 | F144: 86.10 | G144: 42.86% | H144: 82.5128 | I144: - | J144: 71.40 | K144: - | L144: 无
A145: 143 | B145: 2016011798 | C145: 岳宇超 | D145: 105.04350000 | E145: 75.79977143 | F145: 83.70 | G145: 57.14% | H145: 82.4385 | I145: - | J145: 74.80 | K145: 1 | L145: 无
A146: 144 | B146: 2016011900 | C146: 崔濛 | D146: 105.95570000 | E146: 74.78354286 | F146: 88.60 | G146: 76.1900% | H146: 82.3996 | I146: - | J146: 70.00 | K146: 2 | L146: 无
A147: 145 | B147: 2016011834 | C147: 阿依努尔·窝拉尔 | D147: 107.13333333 | E147: 74.85005714 | F147: 85.5 | G147: 52.38% | H147: 82.3717 | J147: 81.6 | K147: 1 | L147: 无
A148: 146 | B148: 2016011806 | C148: 马嘉雨 | D148: 99.52479339 | E148: 77.59039514 | F148: 81.00 | G148: 55.00% | H148: 82.3182 | I148: - | J148: 48.9 | K148: - | L148: 无
A149: 147 | B149: 2016011773 | C149: 牛瑞英 | D149: 105.36360000 | E149: 75.05048889 | F149: 84.30 | G149: 57.14% | H149: 82.0381 | I149: - | J149: 74.20 | K149: 2 | L149: 无
A150: 148 | B150: 2016011777 | C150: 王瑞 | D150: 104.59090000 | E150: 75.00613333 | F150: 86.10 | G150: 61.90% | H150: 82.0325 | I150: - | J150: 74.50 | K150: 2 | L150: 无
A151: 149 | B151: 2016011838 | C151: 郭一静 | D151: 105.86666667 | E151: 75.33620000 | F151: 81 | G151: 61.90% | H151: 82.0087 | J151: 74 | K151: 2 | L151: 无
A152: 150 | B152: 2016011863 | C152: 熊雨双 | D152: 106.80000000 | E152: 75.15520000 | F152: 80.4 | G152: 61.90% | H152: 82.0086 | I152: 554 | J152: 66.8 | K152: 2 | L152: 无
A153: 151 | B153: 2016011823 | C153: 高英涛 | D153: 103.90231405 | E153: 74.77041699 | F153: 87.90 | G153: 52.38% | H153: 81.9098 | I153: - | J153: 83.05 | K153: 3 | L153: 无
A154: 152 | B154: 2016011839 | C154: 何思娇 | D154: 105.86666667 | E154: 75.10880000 | F154: 80.4 | G154: 38.10% | H154: 81.7895 | J154: 75 | K154: 2 | L154: 无
A155: 153 | B155: 2016011862 | C155: 王凯 | D155: 104.03333333 | E155: 74.09617021 | F155: 90 | G155: 55.00% | H155: 81.6740 | J155: 80.8 | K155: - | L155: 无
A156: 154 | B156: 2016011864 | C156: 徐达克 | D156: 105.80000000 | E156: 74.54400000 | F156: 83.1 | G156: 57.14% | H156: 81.6508 | J156: 75.8 | K156: 1 | L156: 无
A157: 155 | B157: 2016011918 | C157: 张培佳 | D157: 106.01980000 | E157: 72.40404211 | F157: 94.20 | G157: 47.6200% | H157: 81.3068 | I157: - | J157: 81.40 | K157: 2 | L157: 无
A158: 156 | B158: 2016011775 | C158: 田彬 | D158: 104.78180000 | E158: 73.66400000 | F158: 85.80 | G158: 47.62% | H158: 81.1012 | I158: - | J158: 73.70 | K158: 1 | L158: 无
A159: 157 | B159: 2016011858 | C159: 金晨辉 | D159: 106.03333333 | E159: 74.25459016 | F159: 78.6 | G159: 47.62% | H159: 81.0449 | J159: 60 | K159: 2 | L159: 无
A160: 158 | B160: 2016011923 | C160: 齐晓伟 | D160: 98.10950000 | E160: 75.02440000 | F160: 88.20 | G160: 28.5700% | H160: 80.9590 | I160: - | J160: 67.80 | K160: 1 | L160: 无
A161: 159 | B161: 2016011791 | C161: 林志勇 | D161: 104.26090000 | E161: 74.63017143 | F161: 78.60 | G161: 42.86% | H161: 80.9533 | I161: - | J161: 63.30 | K161: 1 | L161: 无
A162: 160 | B162: 2016011893 | C162: 许彬鑫 | D162: 98.21070000 | E162: 75.02773333 | F162: =84.7+2 -> 86.7 | G162: 23.81% | H162: =80.6315533333333+0.2 -> 80.8316 | I162: - | J162: 75 | K162: 1 | L162: 无
A163: 161 | B163: 2016011774 | C163: 时静远 | D163: 104.09090000 | E163: 73.67680000 | F163: 84.00 | G163: 57.14% | H163: 80.7919 | I163: - | J163: 72.10 | K163: 2 | L163: 无
A164: 162 | B164: 2016011765 | C164: 张继远 | D164: 98.83870968 | E164: 75.41005714 | F164: 82.20 | G164: 47.62% | H164: 80.7748 | I164: - | J164: 64.40 | K164: 1 | L164: 无
A165: 163 | B165: 2016011915 | C165: 王钐齐 | D165: 104.84060000 | E165: 71.83369412 | F165: 93.00 | G165: 57.1400% | H165: 80.5517 | I165: - | J165: 81.40 | K165: 1 | L165: 无
A166: 164 | B166: 2016011742 | C166: 米笑 | D166: 101.5806452 | E166: 73.94100000 | F166: 83.70 | G166: 33.33% | H166: 80.4448 | I166: - | J166: 72.00 | K166: 2 | L166: 无
A167: 165 | B167: 2016011867 | C167: 陈曦 | D167: 103.55950000 | E167: 72.73840000 | F167: 87.6 | G167: 52.38% | H167: 80.3888 | I167: - | J167: 76.8 | K167: 3 | L167: 无
A168: 166 | B168: 2016011821 | C168: 曹亚东 | D168: 99.90495868 | E168: 73.62182147 | F168: 87.60 | G168: 47.61% | H168: 80.2763 | I168: - | J168: 82.75 | K168: 2 | L168: 无
A169: 167 | B169: 2016011870 | C169: 迪娜·胡山 | D169: 98.25590000 | E169: 74.95040000 | F169: 80.7 | G169: 47.62% | H169: 80.1865 | I169: - | J169: 68.8 | K169: 3 | L169: 无
A170: 168 | B170: 2016011875 | C170: 黄庆梅 | D170: 105.60050000 | E170: 73.47680000 | F170: 75.3 | G170: 47.62% | H170: 80.0839 | I170: - | J170: 76.9 | K170: 2 | L170: 无
A171: 169 | B171: 2016011762 | C171: 王辉 | D171: 98.80645161 | E171: 73.05840000 | F171: 84.60 | G171: 38.10% | H171: 79.3622 | I171: - | J171: 70.60 | K171: - | L171: 无
A172: 170 | B172: 2016011736 | C172: 金书瑶 | D172: 110.62806452 | E172: 69.83200000 | F172: 83.40 | G172: 38.10% | H172: 79.3480 | I172: - | J172: 78.10 | K172: 3 | L172: 无
A173: 171 | B173: 2016011768 | C173: 雷延霞 | D173: 104.59090000 | E173: 71.50582857 | F173: 83.10 | G173: 42.86% | H173: 79.2823 | I173: - | J173: 70.40 | K173: 4 | L173: 无
A174: 172 | B174: 2016011830 | C174: 张合庆 | D174: 106.12479339 | E174: 70.67124620 | F174: 84.00 | G174: 45.00% | H174: 79.0948 | I174: - | J174: 67.65 | K174: 2 | L174: 无
A175: 173 | B175: 2016011799 | C175: 赵凯 | D175: 105.59130000 | E175: 70.81942857 | F175: 83.10 | G175: 28.57% | H175: 79.0019 | I175: - | J175: 73.40 | K175: 2 | L175: 无
A176: 174 | B176: 2016011795 | C176: 魏建华 | D176: 103.81740000 | E176: 69.65691429 | F176: 84.60 | G176: 38.10% | H176: 77.9833 | I176: - | J176: 71.00 | K176: 3 | L176: 无
A177: 175 | B177: 2016011889 | C177: 何秀明 | D177: 101.41640000 | E177: 70.37226667 | F177: 82.5 | G177: 38.10% | H177: 77.7939 | I177: - | J177: 76.8 | K177: 3 | L177: 无
A178: 176 | B178: 2016011754 | C178: 曾霏 | D178: 105.47096774 | E178: 69.04800000 | F178: 79.50 | G178: 19.05% | H178: 77.3778 | I178: - | J178: 67.60 | K178: 2 | L178: 无
A179: 177 | B179: 2016011930 | C179: 赵飞 | D179: 98.73040000 | E179: 71.25061818 | F179: 77.40 | G179: 33.3300% | H179: 77.3615 | I179: - | J179: 62.40 | K179: 2 | L179: 无
A180: 178 | B180: 2016011888 | C180: 郭闯 | D180: 98.15200000 | E180: 70.55520000 | F180: 79.8 | G180: 33.33% | H180: 76.9990 | I180: - | J180: 71.5 | K180: 2 | L180: 无
A181: 179 | B181: 2016011902 | C181: 胡越 | D181: 100.56600000 | E181: 68.35004444 | F181: 84.00 | G181: 38.0900% | H181: 76.3582 | I181: - | J181: 66.10 | K181: 3 | L181: 无
A182: 180 | B182: 2016011788 | C182: 多吉南木加 | D182: 101.54550000 | E182: 67.58000000 | F182: 86.70 | G182: 47.62% | H182: 76.2851 | I182: - | J182: 71.10 | K182: 3 | L182: 无
A183: 181 | B183: 2016011840 | C183: 李冰玉 | D183: 107.00000000 | E183: 66.02080000 | F183: 80.4 | G183: 38.10% | H183: 75.6546 | J183: 71.7 | K183: 4 | L183: 无
A184: 182 | B184: 2016011922 | C184: 马春江 | D184: 99.87540000 | E184: 66.24880000 | F184: 89.10 | G184: 23.8100% | H184: 75.2592 | I184: - | J184: 70.80 | K184: 2 | L184: 无
A185: 183 | B185: 2016011814 | C185: 向永 | D185: 106.40991736 | E185: 64.49600000 | F185: 86.70 | G185: 19.05% | H185: 75.0992 | I185: - | J185: 83.45 | K185: 1 | L185: 无
A186: 184 | B186: 2016011822 | C186: 房乐 | D186: 103.71487603 | E186: 66.02880000 | F186: 77.70 | G186: 26.31% | H186: 74.7331 | I186: - | J186: 69.45 | K186: 3 | L186: 无
A187: 185 | B187: 2016011932 | C187: 朱哲 | D187: 99.39270000 | E187: 71.04960000 | F187: 42.00 | G187: 52.3800% | H187: 73.8133 | I187: - | J187: 77.80 | K187: 3 | L187: 无
A188: 186 | B188: 2016011800 | C188: 赵人民 | D188: 105.34780000 | E188: 63.31733333 | F188: 81.00 | G188: 33.33% | H188: 73.4917 | I188: - | J188: 70.00 | K188: 4 | L188: 无
A189: 187 | B189: 2016011891 | C189: 邵玉琨 | D189: 98.37270000 | E189: 63.53600000 | F189: 75.9 | G189: 33.33% | H189: 71.7397 | I189: - | J189: 61.8 | K189: 3 | L189: 无
A190: 188 | B190: 2016011790 | C190: 胡雷鸣 | D190: 103.40910000 | E190: 58.36347826 | F190: 60.40 | G190: 35.00% | H190: 67.5763 | I190: - | J190: 69.90 | K190: 7 | L190: 无

Sheet Sheet2

Sheet Sheet3
